bitfinex-derivatives/quotes_ETHF0:USTF0_20251223
["timestamp","ask_amount","ask_price","bid_price","bid_amount"]
[1766460672349,6.59,2993.2,2992.4,0.00500825]
[1766460677251,6.59,2993.2,2992.2,3.34414569]
[1766460678355,6.59,2993.2,2992.4,0.00500825]
[1766460679852,6.59,2993.2,2992.4,8.25e-06]
[1766460697267,1.47527227,2993.0,2991.1,1.47527227]
[1766460697569,1.47527227,2992.7,2991.4,4.993]
[1766460697776,3.343,2992.6,2991.4,4.993]
[1766460697970,3.343,2992.6,2991.5,3.343]
[1766460698377,0.00500825,2992.3,2991.8,0.00500825]
[1766460698578,0.00500825,2992.3,2991.8,3.34800825]
[1766460699877,3.343,2992.6,2991.8,3.34800825]
[1766460700270,0.16715,2993.1,2991.8,3.34800825]
[1766460700470,3.343,2993.0,2991.8,3.34800825]
[1766460700876,0.00500825,2992.7,2991.8,3.34800825]
[1766460702474,0.00500825,2992.7,2991.9,3.343]
[1766460704378,3.34800825,2992.7,2991.9,3.343]
[1766460704564,3.34800825,2992.7,2991.8,0.00500825]
[1766460705264,0.91582589,2992.6,2991.8,0.00500825]
[1766460705469,5.517,2992.5,2991.8,0.00500825]
[1766460705669,3.343,2992.4,2991.8,0.00500825]
[1766460709173,3.343,2992.4,2991.5,0.00318221]
[1766460710574,3.343,2992.4,2991.7,0.00500825]
[1766460712768,3.51019,2992.4,2991.2,3.343]
[1766460713679,3.51019,2992.4,2991.5,0.00333892]
[1766460714280,0.16719,2992.4,2991.5,0.00333892]
[1766460714572,3.914,2992.3,2991.5,0.00333892]
[1766460716874,0.16719,2992.4,2991.5,0.00333892]
[1766460717080,3.343,2992.3,2991.5,0.00333892]
[1766460717974,3.343,2992.6,2991.5,9.67533892]
[1766460718373,0.00500825,2992.7,2991.5,9.67533892]
[1766460718777,0.00500825,2992.7,2991.6,9.671]
[1766460718778,3.343,2992.6,2991.6,9.671]
[1766460723384,0.00500825,2992.7,2991.6,11.88388252]
[1766460723576,3.343,2993.3,2992.0,2.21288252]
[1766460723779,3.343,2993.4,2992.1,9.67]
[1766460723978,3.343,2993.4,2992.2,6.151]
[1766460724178,3.343,2993.4,2992.3,3.343]
[1766460724681,0.00500825,2993.1,2992.3,3.343]
[1766460726186,0.16711,2993.7,2992.3,3.343]
[1766460726386,3.343,2993.5,2992.3,3.343]
[1766460727085,0.00500825,2993.2,2992.3,3.343]
[1766460727987,0.00500825,2993.2,2992.5,1.4745384]
[1766460728286,0.00500825,2993.2,2992.7,1.4745384]
[1766460728483,0.00500825,2993.2,2992.8,3.343]
[1766460728682,3.343,2993.5,2992.8,3.343]
[1766460729587,0.00500825,2993.4,2992.8,3.343]
[1766460731282,0.00500825,2993.4,2992.9,1.4745384]
[1766460732992,0.00500825,2993.4,2992.8,3.343]
[1766460735697,0.00500825,2993.4,2992.9,1.4745384]
[1766460736903,3.343,2993.5,2992.9,1.4745384]
[1766460738103,3.34800825,2993.5,2992.9,1.4745384]
[1766460739701,3.34800825,2993.5,2993.1,1.4745384]
[1766460739904,3.342,2993.9,2993.4,1.4745384]
[1766460740106,0.00283521,2994.1,2993.4,1.4779809]
[1766460741001,0.00500824,2994.0,2993.4,1.4779809]
[1766460742003,0.16708,2994.4,2993.6,1.4745384]
[1766460742307,0.16708,2994.4,2993.6,3.342]
[1766460742901,0.17123537,2994.4,2993.6,3.342]
[1766460743408,0.17123537,2994.4,2993.6,4.8165384]
[1766460744999,0.17123537,2994.4,2993.6,3.342]
[1766460745400,3.833,2995.4,2993.6,4.8165384]
[1766460745707,1.4745384,2994.8,2993.6,4.8165384]
[1766460746002,3.342,2994.7,2993.6,3.342]
[1766460746399,3.34540308,2994.7,2993.6,4.8165384]
[1766460746706,3.34540308,2994.7,2993.8,1.4745384]
[1766460747907,3.34540308,2994.7,2993.6,4.8165384]
[1766460748109,3.34540308,2994.7,2993.6,3.342]
[1766460748606,3.34540308,2994.7,2993.6,4.8165384]
[1766460750607,3.34540308,2994.7,2993.6,3.342]
[1766460752014,3.34540308,2994.7,2993.7,1.4745384]
[1766460755318,3.34540308,2994.7,2993.6,3.342]
[1766460755621,0.16707,2994.5,2993.4,0.0034425]
[1766460755812,1.4745384,2993.9,2993.4,0.0034425]
[1766460756017,3.341,2993.9,2993.4,0.0034425]
[1766460759013,0.16708,2994.2,2993.4,0.0034425]
[1766460759219,3.342,2993.9,2993.4,0.0034425]
[1766460762933,3.342,2994.1,2993.6,1.4745384]
[1766460763229,5.816,2994.5,2993.6,1.4745384]
[1766460763230,3.342,2994.2,2993.6,1.4745384]
[1766460764329,3.342,2994.2,2993.4,4.8199809]
[1766460764529,3.342,2994.2,2993.4,3.3454425]
[1766460767824,3.342,2994.2,2993.4,0.0034425]
[1766460768024,3.342,2994.2,2993.4,3.3444425]
[1766460769324,3.342,2994.2,2993.5,1.4745384]
[1766460772725,3.342,2994.2,2993.4,3.3444425]
[1766460778733,3.342,2994.2,2993.4,0.0034425]
[1766460778935,3.342,2994.2,2993.4,3.3444425]
[1766460779840,4.8165384,2994.2,2993.4,3.3444425]
[1766460780031,1.4745384,2994.0,2993.4,0.0034425]
[1766460780231,3.341,2993.9,2993.4,0.0034425]
[1766460780431,3.341,2993.9,2993.0,0.00500825]
[1766460780637,3.341,2993.9,2993.0,3.34600825]
[1766460780938,3.341,2993.8,2993.2,1.4745384]
[1766460781138,3.341,2993.9,2993.2,1.4745384]
[1766460781530,3.341,2993.9,2993.2,1.47757686]
[1766460781936,3.341,2993.9,2993.2,0.00303846]
[1766460782136,0.16708,2994.3,2993.3,4.81490993]
[1766460782446,3.341,2994.1,2993.3,4.81490993]
[1766460784933,0.00340308,2994.7,2993.3,11.12390993]
[1766460785135,3.341,2994.6,2993.6,1.47390993]
[1766460785332,3.341,2994.6,2993.7,3.341]
[1766460787338,3.341,2994.6,2993.4,40.8]
[1766460787642,3.341,2994.6,2993.5,3.341]
[1766460789137,3.341,2994.6,2993.5,4.81490993]
[1766460790241,0.00340308,2994.7,2994.1,1.47390993]
[1766460790442,2.70935304,2994.8,2994.1,4.81490993]
[1766460790840,2.70935304,2994.8,2994.1,3.341]
[1766460791545,2.71358339,2994.8,2994.1,3.341]
[1766460792543,1.18683844,2995.9,2994.1,3.341]
[1766460792749,0.16701,2995.5,2994.7,8.25e-06]
[1766460792951,3.341,2995.4,2994.7,3.34100825]
[1766460793543,0.00242104,2995.4,2994.7,4.81491818]
[1766460795047,0.00242104,2995.4,2994.7,3.34100825]
[1766460796052,3.341,2995.3,2994.7,8.25e-06]
[1766460796247,3.341,2995.3,2994.3,3.341]
[1766460796447,3.341,2995.3,2994.3,4.81490993]
[1766460797357,3.341,2995.3,2994.5,0.00500825]
[1766460797855,0.00242104,2995.4,2994.5,0.00500825]
[1766460797856,3.341,2995.2,2994.5,0.00500825]
[1766460798059,3.341,2995.2,2994.6,4.81490993]
[1766460798257,0.00242104,2995.4,2994.6,4.81490993]
[1766460803563,0.16697,2996.3,2995.2,1.47390993]
[1766460803764,3.34,2996.2,2995.3,3.34]
[1766460804662,3.34316164,2996.2,2995.3,3.3428059]
[1766460805370,3.34130837,2996.2,2995.3,3.3428059]
[1766460806972,0.00130837,2996.2,2995.5,1.47390993]
[1766460807172,0.00130837,2996.2,2995.6,3.34]
[1766460807565,4.34,2996.5,2995.6,3.34]
[1766460807566,1.0,2996.5,2995.6,9.643]
[1766460808675,1.00376557,2996.5,2995.6,9.643]
[1766460809364,0.16693,2997.0,2995.8,1.47390993]
[1766460809567,0.16693,2997.0,2996.1,0.00500825]
[1766460810170,3.34,2997.1,2994.5,1.21877689]
[1766460810469,0.16695,2996.6,2995.4,3.34]
[1766460810671,3.34,2996.5,2995.5,6.302]
[1766460811176,0.00500825,2996.3,2995.7,0.00500825]
[1766460811378,0.00500825,2996.3,2995.7,3.34500825]
[1766460811575,3.34,2996.5,2995.7,3.34500825]
[1766460811576,3.34,2996.5,2995.8,1.47390993]
[1766460811775,0.00403982,2997.1,2995.8,1.47390993]
[1766460811978,3.411,2997.0,2995.8,1.47390993]
[1766460812675,3.411,2997.0,2995.7,3.34500825]
[1766460813579,3.411,2997.0,2995.8,1.47390993]
[1766460814275,3.411,2997.0,2995.7,3.34500825]
[1766460814472,1.47390993,2996.8,2995.8,3.339]
[1766460814671,1.47390993,2996.5,2995.7,0.00500825]
[1766460814875,3.339,2996.4,2995.7,0.00500825]
[1766460815072,3.339,2996.3,2995.7,0.00500825]
[1766460815878,3.339,2996.3,2995.7,3.34400825]
[1766460816079,0.16694,2996.8,2995.7,3.34400825]
[1766460816272,3.339,2996.7,2995.7,3.34400825]
[1766460821684,0.16694,2996.8,2995.7,3.34400825]
[1766460821886,3.339,2996.7,2995.7,4.81791818]
[1766460822486,3.339,2996.7,2995.7,3.34400825]
[1766460822691,0.16694,2996.8,2995.7,3.34400825]
[1766460822985,3.339,2996.7,2995.9,1.47390993]
[1766460823185,3.339,2996.7,2996.0,3.339]
[1766460827594,3.339,2996.7,2995.7,0.00500825]
[1766460827783,3.50595,2996.7,2995.7,0.00500825]
[1766460828190,1.47390993,2996.5,2995.3,0.0028059]
[1766460828486,0.16697,2996.3,2995.3,3.3418059]
[1766460829191,0.00500825,2996.1,2995.5,0.00500825]
[1766460829389,3.339,2996.0,2995.5,0.00500825]
[1766460834698,3.339,2996.0,2995.3,2.3329059]
[1766460835595,3.339,2996.0,2995.4,0.00500825]
[1766460835794,3.339,2996.0,2995.4,0.00909878]
[1766460842106,0.00500825,2996.1,2995.4,0.00909878]
[1766460844704,0.00500825,2996.1,2995.5,1.47181533]
[1766460844904,0.00500825,2996.1,2995.6,3.339]
[1766460848904,8.25e-06,2996.1,2995.6,3.339]
[1766460849106,1.63874533,2997.0,2995.7,1.47181533]
[1766460849408,3.339,2996.9,2995.7,1.47181533]
[1766460849597,1.47181533,2996.8,2995.7,1.47181533]
[1766460849801,3.339,2996.9,2995.7,1.47181533]
[1766460850002,0.00500825,2996.6,2995.7,1.47181533]
[1766460850307,0.00500825,2996.6,2995.9,1.47181533]
[1766460850506,0.00500825,2996.6,2996.0,3.339]
[1766460851506,0.00500825,2996.6,2996.1,1.47181533]
[1766460851711,3.339,2996.7,2996.1,1.47181533]
[1766460851912,0.00403982,2997.1,2996.3,1.47181533]
[1766460852113,0.00403982,2997.1,2996.5,1.47181533]
[1766460852310,0.00403982,2997.1,2996.5,3.339]
[1766460852703,3.34303982,2997.1,2995.9,1.47181533]
[1766460853004,3.34303982,2997.1,2995.4,1.22691099]
[1766460853005,1.47181533,2996.8,2996.0,3.339]
[1766460853209,3.339,2996.7,2996.0,3.339]
[1766460853898,3.339,2996.7,2996.0,4.81081533]
[1766460854305,3.34303982,2997.1,2996.2,1.47181533]
[1766460854513,3.34303982,2997.1,2996.3,3.339]
[1766460856313,3.34303982,2997.1,2996.4,1.47181533]
[1766460857115,3.34303982,2997.1,2996.3,3.339]
[1766460857411,3.34303982,2997.1,2996.4,1.47181533]
[1766460859815,3.339,2997.6,2996.2,1.47181533]
[1766460860021,1.47181533,2997.3,2996.3,4.876]
[1766460860224,1.47181533,2997.5,2996.3,4.876]
[1766460860516,1.47181533,2997.5,2996.3,45.676]
[1766460860717,3.339,2997.6,2996.4,1.47181533]
[1766460860917,0.00246139,2997.5,2996.6,1.47181533]
[1766460861122,0.00246139,2997.5,2996.6,4.81081533]
[1766460861720,1.47427672,2997.5,2996.6,3.339]
[1766460861927,1.47181533,2997.1,2995.8,1.47181533]
[1766460862118,1.47181533,2996.9,2995.9,3.339]
[1766460862317,1.47181533,2996.9,2995.7,14.633]
[1766460862318,3.339,2997.0,2996.0,3.339]
[1766460862520,3.339,2997.0,2996.0,4.81081533]
[1766460864230,0.16692,2997.2,2996.6,1.47181533]
[1766460864432,0.16692,2997.2,2996.5,3.338]
[1766460865732,3.338,2997.3,2996.6,1.47181533]
[1766460866230,0.00246139,2997.5,2996.6,1.47181533]
[1766460868836,0.00246139,2997.5,2996.5,3.338]
[1766460869730,0.00246139,2997.5,2996.6,1.47181533]
[1766460870031,3.34046139,2997.5,2996.8,1.47181533]
[1766460870333,3.34046139,2997.5,2996.8,4.80981533]
[1766460871631,0.00246139,2997.5,2997.0,1.47181533]
[1766460871836,1.7789771,2999.1,2997.1,3.338]
[1766460871837,0.16686,2998.3,2997.1,3.338]
[1766460872032,4.80981533,2998.2,2997.2,3.338]
[1766460872338,1.47181533,2997.8,2997.0,0.00500825]
[1766460872635,3.338,2997.7,2997.0,0.00500825]
[1766460872836,3.34099918,2997.7,2997.0,0.00500825]
[1766460874334,1.47181533,2997.6,2997.0,0.00500825]
[1766460875632,3.34099918,2997.7,2997.0,0.00500825]
[1766460875932,1.47181533,2997.3,2996.6,3.338]
[1766460876234,1.47181533,2996.7,2994.8,2.97718448]
[1766460876432,0.16692,2997.1,2995.7,1.47181533]
[1766460876640,3.338,2997.0,2996.1,1.47181533]
[1766460876942,0.00500825,2996.8,2996.3,1.47682358]
[1766460877435,0.00500825,2996.8,2996.3,0.00500825]
[1766460878741,3.34300825,2996.8,2996.3,0.00500825]
[1766460881033,0.00500825,2996.8,2996.3,0.00500825]
[1766460881233,8.25e-06,2996.8,2996.3,1.47682358]
[1766460882839,8.25e-06,2996.8,2996.3,0.00500825]
[1766460884044,8.25e-06,2996.8,2996.4,3.338]
[1766460884746,8.25e-06,2996.8,2996.3,0.00500825]
[1766460884939,8.25e-06,2996.8,2996.4,3.338]
[1766460886745,8.25e-06,2996.8,2996.3,0.00500825]
[1766460889244,3.338,2997.2,2996.3,0.00500825]
[1766460890250,3.338,2997.2,2996.4,1.47181533]
[1766460890445,3.338,2997.2,2996.5,3.338]
[1766460896246,3.338,2997.2,2996.5,4.80981533]
[1766460898149,3.338,2997.2,2996.5,3.338]
[1766460898845,4.80981533,2997.2,2996.6,3.338]
[1766460899051,4.80981533,2997.2,2996.6,0.4174]
[1766460899348,4.80981533,2997.2,2996.4,3.338]
[1766460899553,3.338,2997.2,2996.4,3.338]
[1766460905660,3.338,2997.2,2996.3,0.00500825]
[1766460905859,3.338,2997.2,2996.4,3.338]
[1766460911362,3.338,2997.2,2996.3,0.00500825]
[1766460911563,3.338,2997.2,2996.4,3.338]
[1766460911863,3.338,2997.2,2996.3,3.34300825]
[1766460913862,3.338,2996.9,2995.5,9.609]
[1766460914063,0.00500825,2996.5,2995.9,0.00500825]
[1766460914358,0.00500825,2996.5,2995.9,3.34300825]
[1766460919662,0.00500825,2996.5,2995.9,0.00500825]
[1766460919870,3.338,2996.4,2995.9,0.00500825]
[1766460928576,3.338,2996.4,2995.5,3.338]
[1766460929572,3.338,2996.4,2995.7,0.00500825]
[1766460930173,4.80912503,2996.4,2995.4,0.00409053]
[1766460930478,4.80912503,2996.4,2995.4,3.34309053]
[1766460931070,4.80912503,2996.4,2995.4,0.00409053]
[1766460931276,4.80912503,2996.4,2995.6,8.25e-06]
[1766460932380,4.97608503,2996.4,2995.4,3.08479878]
[1766460932585,4.97608503,2996.4,2994.5,43.49853057]
[1766460932787,4.97608503,2996.4,2994.6,17.954]
[1766460933588,4.97608503,2996.4,2995.2,0.00500825]
[1766460933788,1.47112503,2996.1,2995.2,3.34400825]
[1766460933990,3.339,2996.0,2995.2,3.34400825]
[1766460953510,5.809,2996.2,2995.2,4.81513328]
[1766460953800,3.50597,2996.3,2995.2,11.08113328]
[1766460953996,0.16697,2996.3,2995.5,1.47112503]
[1766460954197,0.00500825,2996.5,2995.6,3.339]
[1766460955698,8.25e-06,2996.5,2995.8,1.47112503]
[1766460955902,3.339,2996.7,2995.9,3.339]
[1766460956995,0.00500825,2996.6,2995.9,3.339]
[1766460957600,0.16693,2997.1,2995.9,3.339]
[1766460957798,3.339,2997.0,2996.1,1.47112503]
[1766460958007,3.339,2997.0,2996.2,3.339]
[1766460958212,3.339,2997.0,2996.4,1.47112503]
[1766460958703,3.34400825,2997.0,2996.4,1.47112503]
[1766460958898,3.34400825,2997.0,2996.2,3.339]
[1766460961800,3.339,2997.2,2996.2,3.339]
[1766460962906,0.00500825,2997.0,2996.2,3.339]
[1766460964105,0.00500825,2997.0,2995.9,40.8]
[1766460964410,3.339,2996.9,2996.0,3.339]
[1766460964914,3.339,2996.9,2995.8,6.269]
[1766460964915,4.463,2996.8,2995.8,3.339]
[1766460965311,4.463,2996.8,2995.2,1.23487385]
[1766460965312,5.93412503,2996.8,2995.2,1.23487385]
[1766460965612,1.47112503,2996.5,2995.3,3.339]
[1766460965811,3.339,2996.4,2995.3,3.339]
[1766460966009,4.263,2996.3,2995.3,3.339]
[1766460967415,4.263,2996.3,2995.4,1.47195817]
[1766460969619,4.263,2996.3,2995.0,3.339]
[1766460969620,1.47195817,2995.9,2995.0,3.339]
[1766460969812,3.339,2995.8,2995.0,3.339]
[1766460970507,3.339,2995.8,2995.1,0.00500825]
[1766460970708,3.339,2995.8,2995.1,1.47696642]
[1766460970907,0.16698,2996.1,2995.1,1.47696642]
[1766460971109,3.339,2996.0,2995.1,1.47696642]
[1766460979218,1.47195817,2995.9,2995.1,0.00500825]
[1766460979414,1.47195817,2995.7,2994.7,3.339]
[1766460979613,3.339,2995.6,2994.7,3.339]
[1766460979813,3.34320272,2995.6,2994.7,3.339]
[1766460980524,0.00500825,2995.4,2994.9,0.00500825]
[1766460983123,8.25e-06,2995.4,2994.9,0.00500825]
[1766460989630,3.339,2995.3,2994.9,0.00500825]
[1766460990029,1.47195817,2995.1,2994.6,0.00276295]
[1766460990624,1.47195817,2994.7,2993.3,1.2350157]
[1766460990828,3.34,2994.6,2993.7,1.47195817]
[1766460991031,3.34,2994.6,2993.9,0.00500825]
[1766460991728,1.47195817,2994.5,2993.9,0.00834173]
[1766460991923,1.47195817,2994.1,2993.3,3.34]
[1766460992124,3.34,2994.0,2993.3,3.34]
[1766460993138,3.34,2994.0,2993.4,0.00500825]
[1766460998437,3.34,2994.0,2993.4,1.47696642]
[1766461003940,3.34,2994.0,2993.4,0.00500825]
[1766461005444,3.34,2994.0,2993.4,1.47696642]
[1766461005842,3.341,2994.3,2993.5,3.341]
[1766461006048,3.341,2994.4,2993.8,1.47195817]
[1766461007646,3.341,2994.4,2993.8,4.81295817]
[1766461007944,3.341,2994.4,2993.8,3.341]
[1766461015654,5.811,2994.8,2993.8,3.341]
[1766461015655,3.341,2994.7,2993.9,1.47195817]
[1766461015955,3.341,2994.7,2994.1,1.47195817]
[1766461016253,3.341,2994.7,2994.1,4.81295817]
[1766461018156,3.341,2995.0,2994.5,1.47195817]
[1766461018548,5.811,2995.3,2994.5,1.47195817]
[1766461018549,9.152,2995.3,2994.7,1.47195817]
[1766461018758,3.341,2995.3,2994.7,1.47195817]
[1766461020046,3.341,2995.3,2994.5,10.79495817]
[1766461022156,3.341,2995.3,2994.7,1.47195817]
[1766461022350,3.341,2995.3,2994.5,9.323]
[1766461022351,3.341,2995.3,2994.5,1.47195817]
[1766461022551,3.341,2995.3,2994.6,3.341]
[1766461022754,3.341,2995.3,2994.7,3.341]
[1766461023254,3.341,2995.3,2994.6,3.341]
[1766461025655,3.341,2995.3,2994.5,1.47195817]
[1766461025853,3.341,2995.3,2994.6,3.341]
[1766461027761,3.341,2995.3,2994.6,2.5548]
[1766461027957,3.341,2995.3,2994.6,1.7483]
[1766461028163,3.341,2995.3,2994.6,1.3551]
[1766461029662,8.25e-06,2995.4,2994.6,2.82806808]
[1766461034664,8.25e-06,2995.4,2994.3,1.47296808]
[1766461034862,8.25e-06,2995.4,2994.4,8.063]
[1766461037567,8.25e-06,2995.4,2994.6,1.47296808]
[1766461037775,8.25e-06,2995.4,2994.7,3.34]
[1766461039169,3.34,2995.9,2995.2,1.47296808]
[1766461039370,3.34,2995.9,2995.3,3.34]
[1766461039966,3.34934802,2995.9,2995.3,3.34500825]
[1766461040171,3.50697,2996.2,2995.5,1.47296808]
[1766461040468,3.50697,2996.2,2995.3,3.34500825]
[1766461041070,0.00500825,2996.0,2995.3,3.34882824]
[1766461056483,3.51026852,2996.2,2995.3,3.34882824]
[1766461057674,0.00500825,2996.0,2995.3,3.34882824]
[1766461059881,0.00500825,2996.0,2995.3,0.00882824]
[1766461060184,0.00500825,2996.0,2995.4,3.339]
[1766461060383,0.00500825,2996.0,2995.3,0.00882824]
[1766461060681,0.00500825,2996.0,2995.4,3.339]
[1766461062085,3.339,2995.9,2994.9,3.339]
[1766461063189,3.339,2995.9,2995.1,0.00500825]
[1766461063576,4.81196808,2995.9,2994.9,0.003887]
[1766461064587,0.167,2995.8,2995.1,0.00500825]
[1766461065388,8.516,2995.8,2995.1,8.25e-06]
[1766461065683,8.516,2995.8,2994.2,42.27296808]
[1766461065893,8.516,2995.8,2994.3,8.02]
[1766461066888,8.516,2995.8,2994.8,0.00500825]
[1766461067085,1.47296808,2995.3,2994.3,0.00311672]
[1766461067391,9.147,2995.2,2994.3,0.00311672]
[1766461068088,9.147,2995.2,2994.5,0.00333067]
[1766461068993,1.47296808,2994.9,2993.7,3.34]
[1766461069286,3.34,2994.8,2993.7,3.34]
[1766461069485,2.897,2994.7,2993.7,3.34]
[1766461069876,0.00500825,2994.5,2993.7,3.34295037]
[1766461070084,3.34500825,2994.5,2993.7,3.34295037]
[1766461070285,1.47296808,2994.4,2992.5,8.35]
[1766461070478,1.47296808,2994.4,2992.6,8.932]
[1766461070678,1.47296808,2994.4,2992.7,40.8]
[1766461071590,1.64004808,2994.4,2992.7,42.27598674]
[1766461079391,0.16708,2994.4,2993.3,1.47296808]
[1766461079690,3.341,2994.3,2992.7,42.27598674]
[1766461079895,3.341,2994.3,2992.8,9.614]
[1766461080996,3.341,2994.3,2993.0,1.47296808]
[1766461081294,3.341,2994.3,2993.1,9.616]
[1766461084604,3.341,2994.3,2993.3,1.47296808]
[1766461084896,3.341,2994.3,2993.4,3.341]
[1766461085088,3.341,2994.3,2993.5,6.275]
[1766461089898,3.341,2994.3,2993.5,7.74869271]
[1766461090308,0.00500825,2994.5,2993.5,6.275]
[1766461090496,0.00500825,2994.5,2993.8,1.47369271]
[1766461090696,0.00500825,2994.5,2993.9,9.615]
[1766461091803,0.00500825,2994.5,2993.4,1.47369271]
[1766461092001,0.00500825,2994.5,2993.8,1.47369271]
[1766461092202,0.00500825,2994.5,2993.9,8.001]
[1766461097303,0.00500825,2994.5,2993.9,6.272]
[1766461097503,0.00500825,2994.5,2993.9,9.613]
[1766461106515,0.00500825,2994.5,2993.7,1.47369271]
[1766461106710,0.00500825,2994.5,2993.8,9.61]
[1766461107417,3.341,2994.7,2993.9,1.47369271]
[1766461107712,3.341,2995.3,2994.7,1.47369271]
[1766461107912,0.00329852,2996.2,2995.1,1.47369271]
[1766461108115,3.341,2996.1,2995.1,4.62040018]
[1766461108423,0.00500825,2995.9,2995.3,0.00500824]
[1766461110633,3.341,2995.8,2995.3,0.00500824]
[1766461117734,3.341,2995.8,2995.3,1.47870095]
[1766461118340,3.341,2995.8,2995.3,0.00500824]
[1766461119236,3.341,2995.8,2995.1,0.00270747]
[1766461119237,3.341,2995.8,2995.1,3.34270747]
[1766461120036,3.341,2995.8,2995.2,1.47369271]
[1766461120538,0.00500825,2995.9,2995.6,1.47369271]
[1766461120733,0.00329852,2996.2,2995.6,1.47369271]
[1766461120734,3.34329852,2996.2,2995.6,1.47369271]
[1766461121238,3.34329852,2996.2,2995.4,4.81369271]
[1766461121836,0.00500825,2996.1,2995.5,0.00500825]
[1766461140638,8.25e-06,2996.1,2995.5,0.00500825]
[1766461141040,6.77e-06,2996.2,2995.5,0.00500825]
[1766461141241,0.3492,2996.4,2995.8,1.47369271]
[1766461141447,3.339,2996.6,2996.0,1.47369271]
[1766461141849,1.5971,2996.6,2996.0,1.47369271]
[1766461142247,1.60468301,2996.6,2996.0,1.47369271]
[1766461149944,1.60468301,2996.6,2995.9,3.339]
[1766461151053,0.00758301,2996.6,2995.9,3.339]
[1766461153154,0.00758301,2996.6,2996.0,6.287]
[1766461154751,3.339,2996.9,2996.0,6.287]
[1766461154752,0.16691,2997.3,2996.4,1.47118654]
[1766461155055,3.339,2997.9,2997.0,1.47118654]
[1766461155353,3.339,2997.9,2997.3,1.47118654]
[1766461155861,3.34701082,2997.9,2997.3,0.00860304]
[1766461158357,3.34701082,2997.9,2997.3,3.34660304]
[1766461160659,4.81819736,2997.9,2995.2,2.69018931]
[1766461160859,1.47118654,2997.3,2996.1,3.338]
[1766461161054,3.338,2997.2,2996.2,4.963]
[1766461161765,3.338,2997.2,2996.4,0.00500825]
[1766461161959,3.338,2997.2,2996.4,3.34300825]
[1766461162359,1.47919736,2997.9,2996.4,3.34300825]
[1766461162662,0.1669,2997.5,2996.4,4.81419479]
[1766461163254,8.575,2997.8,2996.4,4.81419479]
[1766461164452,8.575,2997.8,2996.4,3.34300825]
[1766461164655,8.575,2997.8,2996.4,4.81419479]
[1766461164961,8.575,2997.8,2996.4,1.47619479]
[1766461165162,8.575,2997.8,2996.5,9.628]
[1766461167166,8.575,2997.8,2996.6,9.627]
[1766461167360,8.575,2997.8,2996.7,6.289]
[1766461167564,8.575,2997.8,2996.7,9.627]
[1766461167763,1.47118654,2997.6,2996.4,0.00500825]
[1766461167964,3.338,2997.5,2996.5,9.627]
[1766461169167,3.338,2997.5,2996.4,0.00500825]
[1766461169369,3.338,2997.5,2996.5,9.627]
[1766461171465,3.338,2997.5,2996.4,0.00500825]
[1766461171766,3.338,2997.5,2996.5,3.338]
[1766461174064,3.338,2997.5,2996.4,0.00500825]
[1766461174065,4.80918654,2997.5,2996.4,0.00500825]
[1766461174264,1.47118654,2997.2,2996.4,0.00500825]
[1766461174471,3.338,2997.1,2996.4,0.00500825]
[1766461178871,3.50491,2997.4,2996.4,0.00500825]
[1766461180269,0.16691,2997.4,2996.4,0.00500825]
[1766461180476,0.00801082,2997.9,2996.4,8.35100825]
[1766461181279,3.338,2997.8,2996.4,8.35100825]
[1766461182476,3.338,2997.8,2996.5,6.285]
[1766461182679,3.338,2997.8,2996.6,3.338]
[1766461189287,0.00801082,2997.9,2996.6,4.80918654]
[1766461193591,0.00801082,2997.9,2996.9,1.47118654]
[1766461193787,0.00801082,2997.9,2997.0,3.338]
[1766461194092,1.082e-05,2997.9,2997.2,1.47118654]
[1766461194285,1.082e-05,2997.9,2997.3,3.338]
[1766461194880,0.00501907,2997.9,2997.3,3.338]
[1766461196591,1.907e-05,2997.9,2997.3,3.338]
[1766461197090,1.907e-05,2997.9,2997.3,4.80918654]
[1766461197688,3.338,2998.3,2997.3,4.80918654]
[1766461197889,3.50384,2998.6,2997.6,1.47118654]
[1766461198089,3.50384,2998.6,2997.7,3.337]
[1766461198287,3.50384,2998.6,2997.8,3.337]
[1766461198792,0.00500825,2998.5,2997.9,0.00500825]
[1766461199395,0.00500825,2998.5,2997.9,3.34200825]
[1766461201696,0.00500825,2998.5,2997.9,0.00500825]
[1766461201900,0.00500825,2998.5,2997.9,3.33700825]
[1766461202789,3.337,2998.9,2997.9,4.80819479]
[1766461203502,3.337,2998.9,2997.9,3.33700825]
[1766461203797,3.337,2998.9,2998.0,3.337]
[1766461204100,0.00500825,2998.7,2998.0,3.337]
[1766461204996,0.00500825,2998.7,2997.9,8.25e-06]
[1766461205300,3.337,2998.6,2997.9,8.25e-06]
[1766461206791,3.337,2998.6,2997.7,3.337]
[1766461206792,1.47118654,2998.5,2996.1,0.16698]
[1766461206997,1.47118654,2998.2,2997.0,9.613]
[1766461207199,3.337,2998.1,2997.0,9.613]
[1766461207795,3.337,2998.1,2997.3,0.00500825]
[1766461209201,1.47118654,2998.0,2995.6,3.342]
[1766461209498,1.47118654,2998.0,2996.4,40.8]
[1766461209699,4.80818654,2998.1,2996.5,6.20118654]
[1766461209890,3.337,2998.1,2996.5,6.20118654]
[1766461210396,4.80818654,2998.1,2997.0,0.00500825]
[1766461210600,4.80818654,2998.1,2997.0,3.34200825]
[1766461210601,4.97505654,2998.1,2997.0,3.34200825]
[1766461210997,1.47118654,2997.8,2997.0,0.00500825]
[1766461211198,3.337,2997.7,2997.0,0.00500825]
[1766461211902,4.80774673,2997.7,2997.0,0.00500825]
[1766461212203,4.80774673,2997.7,2997.0,3.34200825]
[1766461212403,3.337,2997.7,2997.0,3.34200825]
[1766461213296,3.337,2997.7,2997.0,0.00500825]
[1766461213599,3.337,2997.7,2997.0,3.34200825]